bitfinex/quotes_ETHUSD_20220220
["timestamp","ask_amount","ask_price","bid_price","bid_amount"]
[1645319457152,7.5,2715.6,2715.1,11.15]
[1645319457354,7.5,2715.6,2714.6,11.15]
[1645319457355,8.42145,2715.6,2714.6,11.15]
[1645319457656,8.42145,2715.6,2714.8,11.15]
[1645319457853,8.42145,2715.6,2715.0,0.87956718]
[1645319458358,8.42145,2715.6,2714.6,11.15]
[1645319458655,0.92175,2715.3,2714.7,1.56654355]
[1645319458855,2.76523,2715.3,2714.8,1.56654355]
[1645319459057,2.76523,2715.3,2715.0,0.00271273]
[1645319459311,0.87509749,2715.1,2715.0,0.00271273]
[1645319459509,2.76523,2715.3,2715.0,0.00271273]
[1645319459709,1.84349,2715.2,2715.0,0.00271273]
[1645319459907,0.92175,2715.3,2714.5,11.1508]
[1645319460105,0.92175,2715.3,2714.6,1.56666005]
[1645319460307,0.92175,2715.3,2715.0,0.00271268]
[1645319460508,0.441,2715.4,2715.0,1.0999342]
[1645319461108,0.441,2715.4,2715.0,1.09722152]
[1645319461509,0.441,2715.4,2715.1,0.00271263]
[1645319462408,0.441,2715.4,2715.0,1.09722152]
[1645319462607,0.441,2715.4,2714.5,11.1508]
[1645319462811,0.92157,2715.3,2714.6,1.56662763]
[1645319463056,0.92157,2715.3,2714.7,1.56662763]
[1645319463256,0.92157,2715.3,2714.8,1.56662763]
[1645319463456,0.92157,2715.3,2714.5,0.0008]
[1645319463656,0.9863219,2715.2,2714.5,0.0008]
[1645319463864,0.92166,2715.1,2714.9,0.00270682]
[1645319464059,0.92168,2715.0,2714.9,0.00270682]
[1645319464667,1.36268,2715.0,2714.9,0.00270682]
[1645319464864,1.84386,2714.9,2714.5,0.0008]
[1645319465062,0.441,2714.8,2714.5,0.0008]
[1645319465259,7.5,2714.6,2714.5,0.0008]
[1645319465460,8.959,2714.6,2714.5,0.0008]
[1645319465867,10.01933045,2714.6,2714.5,0.0008]
[1645319466063,10.94137045,2714.6,2714.5,0.0008]
[1645319466261,10.94137045,2714.6,2713.9,3.1830688]
[1645319466262,11.0,2714.5,2713.9,3.1830688]
[1645319466462,11.0,2714.5,2713.7,0.007]
[1645319466463,0.6252,2714.4,2713.7,0.007]
[1645319467305,1.10154212,2714.0,2713.7,0.007]
[1645319467501,2.46467212,2714.0,2713.7,0.007]
[1645319467702,0.92213,2713.9,2713.7,0.007]
[1645319467903,4.30893212,2714.0,2713.9,0.74965982]
[1645319468703,4.49313212,2714.0,2713.9,0.74965982]
[1645319469202,4.30893212,2714.0,2713.9,0.74965982]
[1645319470008,3.20739,2714.0,2713.9,0.74965982]
[1645319470962,4.0766829,2714.0,2713.9,0.74965982]
[1645319471759,4.64132114,2714.0,2713.9,0.74965982]
[1645319474196,4.0766829,2714.0,2713.9,0.74965982]
[1645319474801,3.5,2713.9,2713.8,0.00270115]
[1645319475001,3.20793,2713.9,2713.8,0.00270115]
[1645319475600,3.20793,2713.9,2713.7,0.007]
[1645319475804,3.20793,2713.9,2713.7,0.00970125]
[1645319476801,3.20793,2713.9,2713.7,0.007]
[1645319477199,3.20793,2713.9,2713.7,0.0097013]
[1645319478052,3.20793,2713.9,2713.7,0.007]
[1645319478254,3.20793,2713.9,2713.7,0.0097013]
[1645319479250,3.20793,2713.9,2713.7,0.007]
[1645319479454,3.20793,2713.9,2713.7,0.0097013]
[1645319480156,2.76693,2713.9,2713.7,0.0097013]
[1645319480353,4.5580029,2714.0,2713.7,0.007]
[1645319480354,1.84174552,2714.0,2713.7,0.007]
[1645319480554,0.441,2713.9,2713.7,0.007]
[1645319480851,0.441,2713.9,2713.7,0.0097013]
[1645319481253,0.94362864,2713.8,2713.7,0.0097013]
[1645319481454,1.38462864,2713.8,2713.7,0.0097013]
[1645319481709,1.38462864,2713.8,2713.7,0.007]
[1645319483807,0.441,2713.8,2713.7,0.007]
[1645319487857,0.61346714,2714.0,2713.7,0.007]
[1645319488060,0.441,2713.9,2713.7,0.007]
[1645319489212,0.441,2713.9,2713.7,0.0097013]
[1645319489603,0.391,2713.9,2713.7,0.0097013]
[1645319489805,0.441,2714.3,2713.7,0.0097013]
[1645319490003,1.36312,2714.3,2713.9,0.91984704]
[1645319490806,0.441,2714.3,2713.9,0.91984704]
[1645319491506,0.441,2714.3,2714.0,0.002701]
[1645319491706,0.441,2714.3,2714.0,3.502701]
[1645319491908,0.54562537,2714.7,2714.0,3.502701]
[1645319492108,0.54562537,2714.7,2714.0,0.002701]
[1645319492307,0.54562537,2714.7,2714.0,1.56974447]
[1645319492508,0.54562537,2714.7,2714.0,1.56704347]
[1645319492708,0.54562537,2714.7,2714.5,1.08429802]
[1645319492959,0.1841,2715.5,2714.6,12.71678801]
[1645319493162,0.55727468,2715.6,2714.7,5.06678801]
[1645319493355,0.55727468,2715.6,2714.8,1.56678801]
[1645319493555,0.55727468,2715.6,2714.7,11.15]
[1645319493752,0.55727468,2715.6,2714.8,1.56670285]
[1645319494154,0.55727468,2715.6,2715.3,1.17113093]
[1645319494553,0.55727468,2715.6,2715.0,0.9213889]
[1645319494755,0.55727468,2715.6,2715.1,1.56662983]
[1645319494955,0.45727468,2715.6,2715.1,1.56662983]
[1645319495155,0.45727468,2715.6,2715.1,3.5]
[1645319495360,0.45727468,2715.6,2715.3,11.15]
[1645319495558,7.468e-05,2715.6,2715.4,12.71649418]
[1645319495762,7.468e-05,2715.6,2715.4,11.15]
[1645319496355,7.468e-05,2715.6,2715.5,12.71648072]
[1645319497002,7.468e-05,2715.6,2715.5,11.15]
[1645319497199,7.468e-05,2715.6,2715.5,12.71645437]
[1645319497399,7.468e-05,2715.6,2715.5,11.15]
[1645319497600,7.468e-05,2715.6,2715.5,12.71646211]
[1645319499002,7.468e-05,2715.6,2715.5,16.21646211]
[1645319500205,7.468e-05,2715.6,2715.5,1.56647788]
[1645319500450,7.468e-05,2715.6,2715.1,0.1841]
[1645319500851,7.468e-05,2715.6,2715.2,1.56661792]
[1645319501852,7.468e-05,2715.6,2715.2,2.53046654]
[1645319502150,7.468e-05,2715.6,2715.3,1.56661792]
[1645319502552,7.468e-05,2715.6,2715.1,0.1841]
[1645319502751,7.468e-05,2715.6,2715.2,1.5666398]
[1645319502952,7.468e-05,2715.6,2715.2,12.7166398]
[1645319503150,7.468e-05,2715.6,2715.3,2.72041876]
[1645319503352,7.468e-05,2715.6,2715.3,12.30377896]
[1645319503557,7.468e-05,2715.6,2715.3,1.15377896]
[1645319504300,7.468e-05,2715.6,2715.4,11.15]
[1645319504500,7.468e-05,2715.6,2715.3,1.15377896]
[1645319505301,7.468e-05,2715.6,2715.4,14.65]
[1645319505511,7.468e-05,2715.6,2715.5,12.71640722]
[1645319506507,1.85608895,2716.6,2715.5,14.65]
[1645319506702,1.85608895,2716.6,2716.3,1.07521445]
[1645319507005,1.85609119,2716.6,2716.3,1.07521445]
[1645319507411,0.00343766,2716.7,2716.4,11.15]
[1645319507604,3.766e-05,2716.7,2716.4,11.15]
[1645319508056,1.90962545,2717.7,2716.5,11.15]
[1645319508256,1.90962545,2717.7,2716.8,0.91928542]
[1645319508455,1.90962545,2717.7,2716.8,12.06928542]
[1645319508659,2.83056545,2717.7,2715.8,3.5]
[1645319508859,0.441,2717.1,2715.7,0.1839]
[1645319509057,0.1839,2716.9,2715.7,0.1839]
[1645319509255,0.92127,2716.6,2715.7,0.1839]
[1645319509656,0.92127,2716.6,2716.2,0.00226256]
[1645319510457,0.92127,2716.6,2715.9,0.96754101]
[1645319510657,0.92127,2716.6,2716.3,0.00226252]
[1645319510859,0.92124,2716.4,2716.3,0.00226252]
[1645319511706,0.92124,2716.4,2715.9,0.96754101]
[1645319511907,0.92124,2716.4,2716.2,0.00226256]
[1645319512906,0.92124,2716.4,2715.9,12.11754101]
[1645319513106,0.87124,2716.4,2716.2,0.0022442]
[1645319513911,0.82124,2716.4,2716.2,0.0022442]
[1645319514109,0.82124,2716.4,2715.9,0.96754101]
[1645319514308,0.82124,2716.4,2716.2,0.0022442]
[1645319515308,0.82124,2716.4,2715.9,12.11754101]
[1645319515556,0.82124,2716.4,2716.2,0.0022442]
[1645319516356,0.82124,2716.4,2715.9,12.11754101]
[1645319516760,0.82124,2716.4,2716.2,0.00226074]
[1645319517759,0.82124,2716.4,2715.9,12.11754101]
[1645319517958,0.82124,2716.4,2716.2,0.00226074]
[1645319518559,1.38605242,2716.4,2716.2,0.00226074]
[1645319518759,1.38605242,2716.4,2715.9,0.96754101]
[1645319519212,1.38605242,2716.4,2716.2,0.00226074]
[1645319519610,0.56481242,2716.4,2716.2,0.00226074]
[1645319520008,0.56481242,2716.4,2716.1,11.15]
[1645319520209,0.56481242,2716.4,2716.2,0.00225683]
[1645319520807,0.56481242,2716.4,2716.2,11.15225683]
[1645319521207,0.56481242,2716.4,2715.9,0.96754101]
[1645319521410,1.48601242,2716.4,2716.2,0.00225683]
[1645319521811,0.9212,2716.4,2716.2,0.00225683]
[1645319522513,0.9212,2716.4,2715.0,3.18243088]
[1645319522514,1.84257,2716.3,2715.0,3.18243088]
[1645319522712,0.9214,2716.1,2714.9,1.8425608]
[1645319522956,1.84279,2716.2,2714.7,11.15]
[1645319522957,0.92145,2715.7,2714.7,11.15]
[1645319523158,0.92145,2715.7,2714.9,11.15]
[1645319523356,0.92145,2715.7,2715.1,11.1]
[1645319523559,0.92145,2715.7,2715.3,0.93266176]
[1645319524462,1.74289,2715.7,2715.3,0.93266176]
[1645319524656,1.74289,2715.7,2715.2,0.0022589]
[1645319524860,1.74289,2715.7,2714.7,11.15]
[1645319525056,0.92163,2715.4,2714.7,11.15]
[1645319525256,0.92163,2715.4,2714.5,0.1841]
[1645319525956,0.92163,2715.4,2714.7,0.98948688]
[1645319526358,0.92163,2715.4,2714.8,0.00225919]
[1645319526359,0.92166,2715.3,2714.8,0.00225919]
[1645319526562,0.6251,2716.2,2714.9,11.15]
[1645319526831,0.441,2716.2,2715.3,1.67128909]
[1645319527023,0.1841,2715.9,2715.3,1.67128909]
[1645319527424,0.1841,2715.9,2715.5,1.0338824]
[1645319527622,0.92146,2715.8,2715.3,1.62355313]
[1645319528822,0.92146,2715.8,2715.3,2.7995923]
[1645319529024,0.42146,2715.8,2715.3,2.7995923]
[1645319529223,2.26443,2715.8,2715.3,2.7995923]
[1645319530225,0.42146,2715.8,2715.3,13.9495923]
[1645319531058,0.42146,2715.8,2715.4,0.00082275]
[1645319532056,0.42146,2715.8,2715.3,13.9495923]
[1645319532260,0.42146,2715.8,2715.4,0.00273684]
[1645319532964,0.1841,2716.3,2715.4,0.00273684]
[1645319533162,2.0264,2716.5,2715.5,11.15]
[1645319533361,1.8423,2716.5,2715.5,11.15]
[1645319533960,1.8423,2716.5,2715.9,0.98262653]
[1645319535010,1.8423,2716.5,2715.9,12.13262653]
[1645319536511,0.92128,2716.4,2715.5,11.15]
[1645319536712,0.92128,2716.4,2715.4,0.00273684]
[1645319536713,0.92138,2716.1,2715.4,0.00273684]
[1645319536909,0.92138,2716.1,2715.3,12.77355313]
[1645319537110,0.92138,2716.1,2715.4,0.00273684]
[1645319537509,0.92138,2716.1,2715.8,11.15]
[1645319537708,0.9214,2715.9,2715.8,11.15]
[1645319538156,1.84248,2716.4,2715.8,11.15]
[1645319538157,0.9212,2716.3,2715.8,11.15]
[1645319538954,0.9212,2716.3,2716.2,0.89665967]
[1645319539159,1.84242,2716.3,2716.2,0.89665967]
[1645319540357,1.84242,2716.3,2716.2,12.04665967]
[1645319540757,0.92122,2716.3,2716.2,12.04665967]
[1645319541357,0.9211,2716.5,2716.2,12.04665967]
[1645319542617,0.9244597,2716.6,2716.2,12.04665967]
[1645319542813,0.92112,2716.6,2716.2,12.04665967]
[1645319543215,0.9244597,2716.6,2716.2,12.04665967]
[1645319544013,0.92112,2716.6,2716.2,12.04665967]
[1645319544414,0.92445974,2716.6,2716.2,12.04665967]
[1645319545217,0.92112,2716.6,2716.2,12.04665967]
[1645319545674,0.92445942,2716.6,2716.2,12.04665967]
[1645319546368,0.92445942,2716.6,2715.5,0.1839]
[1645319546574,0.9212,2716.3,2715.6,1.56498988]
[1645319546769,0.92128,2716.2,2715.6,1.56498988]
[1645319546973,0.92128,2716.2,2715.7,1.56498988]
[1645319547173,0.92128,2716.2,2715.4,3.50243579]
[1645319547372,0.92128,2716.2,2715.6,11.15]
[1645319547571,0.92128,2716.2,2715.8,11.15]
[1645319547775,0.92128,2716.2,2715.9,1.19429127]
[1645319548272,0.92132,2716.1,2715.9,1.19429127]
[1645319548676,0.82132,2716.1,2715.9,1.19429127]
[1645319549073,3.68509,2716.4,2715.9,1.19429127]
[1645319549331,1.84253,2716.4,2715.9,12.34429127]
[1645319549716,0.92126,2716.3,2715.9,12.34429127]
[1645319549919,0.92123,2716.5,2715.9,12.34429127]
[1645319550119,0.87123,2716.5,2715.9,12.34429127]
[1645319550519,0.87123,2716.5,2716.0,1.5649129]
[1645319550722,0.87123,2716.5,2716.1,11.15]
[1645319550923,1.79239,2716.5,2716.1,11.15]
[1645319551523,0.00318938,2716.6,2716.1,11.15]
[1645319551723,0.00318938,2716.6,2716.0,11.15]
[1645319552523,0.92113,2716.7,2716.0,11.15]
[1645319552726,0.00318938,2716.6,2716.0,11.15]
[1645319552963,0.00318938,2716.6,2716.1,11.15]
[1645319553760,2.08492,2717.0,2716.5,1.04197753]
[1645319554063,0.00320027,2716.6,2716.5,1.04197753]
[1645319554662,0.67428027,2716.7,2716.5,0.04197753]
[1645319555064,0.67428027,2716.7,2716.2,0.95009587]
[1645319555262,0.67428027,2716.7,2716.3,11.09197753]
[1645319555870,0.98,2717.0,2716.4,11.09197753]
[1645319556714,0.98,2717.0,2716.2,0.95009587]
[1645319556913,0.921,2716.9,2716.2,0.95009587]
[1645319557113,0.921,2716.9,2716.2,12.10009587]
[1645319557622,0.0035802,2716.7,2716.2,12.10283988]
[1645319558413,0.921,2716.9,2716.2,12.10009587]
[1645319558612,0.921,2716.9,2716.1,11.15]
[1645319558814,0.921,2716.9,2716.3,11.15]
[1645319558815,0.0035801,2716.7,2716.3,11.15]
[1645319559516,0.92108,2716.6,2716.3,11.15]
[1645319559714,0.92108,2716.6,2716.1,11.15]
[1645319559914,0.92108,2716.6,2716.0,3.5]
[1645319559915,0.92108,2716.6,2716.3,1.13223957]
[1645319560314,0.92108,2716.6,2716.3,12.28223957]
[1645319560564,0.92108,2716.6,2716.3,1.13223957]
[1645319560760,0.92108,2716.6,2716.3,12.28223957]
[1645319561164,0.9246601,2716.7,2716.3,12.28223957]
[1645319561359,0.0035801,2716.7,2716.3,12.28223957]
[1645319562265,0.98,2717.0,2716.5,11.15]
[1645319562463,0.00358015,2716.7,2716.5,11.15]
[1645319563065,0.00358015,2716.7,2716.4,11.15]
[1645319563261,0.98,2717.0,2716.4,11.15]
[1645319563662,0.00358025,2716.7,2716.4,11.15]
[1645319563862,0.00358025,2716.7,2716.3,1.13223957]
[1645319564314,0.92107,2716.6,2716.2,0.00274401]
[1645319564511,0.92107,2716.6,2715.9,1.56476196]
[1645319564711,0.92107,2716.6,2716.2,0.00274401]
[1645319564915,2.76349,2716.6,2716.2,0.00274401]
[1645319565309,2.76349,2716.6,2716.2,0.88313602]
[1645319565715,2.76349,2716.6,2716.2,0.88039201]
[1645319565914,2.76349,2716.6,2716.2,0.00274401]
[1645319565915,0.92107,2716.6,2716.2,0.00274401]
[1645319566112,0.00358005,2716.7,2716.2,0.00274401]
[1645319566913,2.83643857,2717.0,2716.1,11.15]
[1645319566914,0.98,2717.0,2716.1,11.15]
[1645319567115,0.0035801,2716.7,2716.2,0.00274401]
[1645319567982,0.0035801,2716.7,2716.3,12.13365315]
[1645319568180,1.90096,2717.0,2716.3,0.98365315]
[1645319568481,0.0035801,2716.7,2716.3,0.98365315]
[1645319569101,0.0035801,2716.7,2716.4,11.15]
[1645319569278,2.82193,2717.0,2716.4,11.15]
[1645319569481,0.00358015,2716.7,2716.3,0.98365315]
[1645319569680,0.92106,2716.6,2716.3,0.98365315]
[1645319570585,0.92106,2716.6,2715.8,0.1839]
[1645319570784,0.92106,2716.6,2716.2,0.00274401]
[1645319571711,0.92106,2716.6,2715.9,1.56484553]
[1645319571912,0.92106,2716.6,2716.2,0.00274401]
[1645319572114,2.76368,2716.5,2716.2,0.00274401]
[1645319572311,0.00358005,2716.7,2716.2,0.00274401]
[1645319572710,0.00358005,2716.7,2716.3,11.15]
[1645319572913,0.36170081,2716.6,2716.1,11.15]
[1645319573112,0.36170081,2716.6,2716.2,12.71746701]
[1645319573313,0.36170081,2716.6,2716.2,11.15274401]
[1645319573513,0.36170081,2716.6,2716.4,11.15]
[1645319574616,0.36170081,2716.6,2716.5,0.87795161]
[1645319576890,0.36170081,2716.6,2716.3,11.15]
[1645319577087,0.36170081,2716.6,2716.2,0.00274401]
[1645319577687,0.36170081,2716.6,2716.1,1.564812]
[1645319577888,2.20402081,2716.6,2716.1,1.0329273]
[1645319578088,2.20402081,2716.6,2716.2,1.56755406]
[1645319578289,0.9211,2716.5,2716.2,1.56755406]
[1645319578895,0.9211,2716.5,2716.2,1.56481005]
[1645319579089,0.9211,2716.5,2716.2,1.56755406]
[1645319579714,1.84222,2716.5,2716.2,1.56755406]
[1645319579920,1.84222,2716.5,2716.2,1.56643914]
[1645319580114,1.84222,2716.5,2715.6,3.5]
[1645319580115,0.92123,2716.3,2715.7,11.15]
[1645319580315,0.92123,2716.3,2716.2,0.00274401]
[1645319580615,0.82123,2716.3,2716.2,0.00274401]
[1645319581215,0.82123,2716.3,2715.9,12.29018333]
[1645319581419,1.18293081,2716.3,2715.9,12.29018333]
[1645319581616,0.36170081,2716.3,2716.1,0.00274409]
[1645319582516,0.36170081,2716.3,2715.9,12.29018333]
[1645319582717,0.36170081,2716.3,2715.6,3.5]
[1645319582718,0.92118,2716.2,2716.1,0.00274414]
[1645319583166,0.36170081,2716.3,2716.1,0.00274414]
[1645319583771,0.36170081,2716.3,2715.7,11.15]
[1645319583975,0.36170081,2716.3,2716.1,0.00274414]
[1645319584471,0.92111,2716.6,2716.2,1.0942203]
[1645319584668,0.36170081,2716.4,2716.2,1.0942203]
[1645319584872,0.31170081,2716.4,2716.2,12.2442203]
[1645319585072,0.31170081,2716.4,2716.2,12.24696431]
[1645319585869,0.26170081,2716.4,2716.2,12.24696431]
[1645319586076,0.26170081,2716.4,2716.2,12.2442203]
[1645319586270,0.26170081,2716.4,2716.2,12.24696434]
[1645319587125,0.26170081,2716.4,2716.2,0.00274404]
[1645319587323,0.26170081,2716.4,2716.0,11.15]
[1645319587523,0.26170081,2716.4,2716.2,0.00274404]
[1645319587724,1.18287081,2716.4,2716.2,0.00274404]
[1645319587923,0.92117,2716.4,2716.2,0.00274404]
[1645319588322,1.84052696,2716.4,2716.2,0.00274404]
[1645319588523,1.84052696,2716.4,2715.5,0.92508447]
[1645319588727,0.92133,2716.1,2715.4,11.15]
[1645319589028,0.92135,2716.2,2715.3,1.62355313]
[1645319589029,0.92134,2716.0,2715.3,1.62355313]
[1645319589626,0.92134,2716.0,2714.6,2.53456568]
[1645319589627,0.92771345,2715.6,2714.7,3.5]
[1645319589835,0.7151,2715.5,2714.6,0.00329715]
[1645319590028,1.84355,2715.4,2714.6,0.00329715]
[1645319590228,2.76536,2715.4,2714.2,3.50329715]
[1645319590467,0.1841,2715.3,2714.3,11.84870233]
[1645319590667,2.76536,2715.4,2714.5,11.84540518]
[1645319590969,0.92178,2715.3,2714.6,11.84870233]
[1645319591168,0.1841,2715.7,2714.7,0.00274555]
[1645319591371,0.26170081,2715.3,2714.7,0.00274555]
[1645319591572,0.26170081,2715.3,2715.1,0.99364286]
[1645319591970,0.26170081,2715.3,2715.1,12.14364286]
[1645319592370,0.92131,2715.9,2715.3,11.67340162]
[1645319592869,0.92131,2715.9,2715.8,0.91729353]
[1645319593073,0.9943137,2717.0,2715.8,12.06729353]
[1645319593074,0.1841,2716.4,2715.8,12.06729353]
[1645319593272,3.5,2716.8,2715.8,12.06729353]
[1645319593771,0.00357949,2716.7,2715.8,12.06729353]
[1645319593970,0.92462949,2716.7,2715.8,0.91729353]
[1645319594237,1.84571949,2716.7,2715.8,0.91729353]
[1645319594422,1.84214,2716.7,2715.8,0.91729353]
[1645319594823,1.8457199,2716.7,2716.1,0.00274409]
[1645319595625,1.84214,2716.7,2715.9,11.15]
[1645319595924,1.84572005,2716.7,2716.2,0.00274401]
[1645319596925,1.84214,2716.7,2715.9,11.15]
[1645319597124,1.8457201,2716.7,2716.2,0.00274401]
[1645319598078,1.8457201,2716.7,2715.8,0.91729353]
[1645319598079,1.84214,2716.7,2715.8,0.91729353]
[1645319598277,1.8457201,2716.7,2716.2,0.00274401]
[1645319598474,0.92123,2716.6,2716.2,0.00274401]
[1645319598681,1.8457201,2716.7,2716.2,0.00274401]
[1645319599279,1.84214,2716.7,2715.9,11.15]
[1645319599474,1.84214,2716.7,2716.2,0.00274401]
[1645319599475,1.8457201,2716.7,2716.2,0.00274401]
[1645319600477,3.68474,2716.7,2715.3,0.52340162]
[1645319600678,0.9214,2716.4,2716.2,0.00274401]
[1645319600878,2.76416,2716.4,2715.4,1.56504537]
[1645319601180,1.84277,2716.4,2715.4,1.56504537]
[1645319601380,3.5,2716.3,2715.4,1.56504537]
[1645319601580,0.89020742,2716.1,2715.4,1.56504537]
[1645319602015,1.81160742,2716.1,2715.4,1.56504537]
[1645319605119,1.81160742,2716.1,2715.3,11.67340162]
[1645319605316,1.81160742,2716.1,2715.4,1.56516574]
[1645319605571,1.81160742,2716.1,2715.6,0.00273773]
[1645319606569,0.9214,2716.1,2715.4,1.56511219]
[1645319606768,0.9214,2716.1,2715.7,0.00273763]
[1645319607771,1.94594815,2716.1,2715.4,1.56511219]
[1645319607969,1.94594815,2716.1,2715.8,0.00273758]
[1645319608970,1.94594815,2716.1,2715.4,1.56511219]
[1645319609233,1.94594815,2716.1,2715.1,9.37295084]
[1645319609421,0.92134,2716.0,2715.1,9.37295084]
[1645319609624,0.92134,2716.0,2715.1,12.87295084]
[1645319609625,0.92134,2715.8,2715.1,12.87295084]
[1645319610020,0.92134,2715.8,2715.1,9.37295084]
[1645319610220,0.92134,2715.8,2715.1,12.87295084]
[1645319610424,0.92134,2715.8,2715.1,11.15]
[1645319610621,0.92134,2715.8,2715.1,3.5]
[1645319610823,0.92134,2715.8,2715.0,1.07087614]
[1645319611023,1.84262,2716.0,2715.1,3.5]
[1645319611224,0.92128,2716.0,2715.1,3.5]
[1645319611425,0.92128,2716.0,2715.1,14.65]
[1645319612627,0.92128,2716.0,2715.5,0.43987985]
[1645319613264,0.92128,2716.0,2715.2,0.9212202]
[1645319613465,0.92128,2716.0,2715.1,11.15]
[1645319613667,1.84263,2716.0,2715.1,11.15]
[1645319613866,1.84263,2716.0,2715.2,11.15]
[1645319614069,1.84263,2716.0,2715.5,0.00273104]
[1645319614269,1.13429685,2715.9,2715.5,0.00273104]
[1645319614873,1.13429685,2715.9,2715.1,3.5]
[1645319615068,1.84263,2716.0,2715.2,11.15]
[1645319615270,0.92128,2716.0,2715.6,0.00273094]
[1645319615568,2.94816,2716.2,2715.6,0.00273094]
[1645319615769,0.1841,2716.2,2715.6,0.00273094]
[1645319616170,0.1841,2716.2,2715.6,0.62102664]
[1645319616371,0.00357999,2716.4,2715.7,3.50273084]
[1645319616576,0.00357999,2716.4,2715.8,11.15]
[1645319616820,0.00357999,2716.4,2715.7,14.65273084]
[1645319617523,0.00357999,2716.4,2715.7,11.15273084]
[1645319617524,1.84594014,2716.4,2715.7,11.15273084]
[1645319618319,1.84594014,2716.4,2715.7,0.00273084]
[1645319618521,1.84236,2716.4,2715.6,0.62102664]
[1645319618922,1.84594014,2716.4,2715.7,0.00273084]
[1645319619421,1.84594014,2716.4,2715.8,11.15]
[1645319619918,1.84594019,2716.4,2715.8,11.15]
[1645319620569,1.84594019,2716.4,2715.7,0.00273084]
[1645319620966,1.84259,2716.3,2715.6,0.62102664]
[1645319621166,1.84259,2716.3,2715.7,0.00273084]
[1645319621368,2.76394,2716.3,2715.7,0.00273084]
[1645319621566,1.84271,2716.2,2715.7,0.00273084]
[1645319621767,2.76394,2716.3,2715.7,11.15273084]
[1645319621768,0.92133,2716.1,2715.7,11.15273084]
[1645319621970,0.92135,2716.3,2715.7,11.15273084]
[1645319622167,0.92135,2716.3,2715.7,11.15]
[1645319622369,0.00357999,2716.4,2715.7,11.15273084]
[1645319622571,0.00357999,2716.4,2715.7,0.00273084]
[1645319622967,0.92475999,2716.4,2715.7,0.00273084]
[1645319623370,0.92118,2716.4,2715.7,3.5]
[1645319623572,0.92476014,2716.4,2715.8,11.15]
[1645319624515,0.92118,2716.4,2715.7,11.15]
[1645319624713,0.92118,2716.4,2716.1,0.88972935]
[1645319624915,0.92476019,2716.4,2715.7,11.15273084]
[1645319625117,0.92476019,2716.4,2715.7,0.00273084]
[1645319625716,0.92118,2716.4,2715.4,11.15]
[1645319625915,0.92128,2716.2,2715.7,0.00273084]
[1645319626515,0.92127,2716.1,2715.7,0.00273084]
[1645319626915,0.92127,2716.1,2715.4,11.15]
[1645319627215,0.92127,2716.1,2715.7,0.00273084]
[1645319628166,0.92127,2716.1,2715.2,11.15]
[1645319628365,0.92137,2716.0,2715.7,0.00273084]
[1645319628967,0.92127,2716.1,2715.7,0.00273084]
[1645319629370,0.92127,2716.1,2715.6,1.01356723]
[1645319629568,0.92127,2716.1,2715.7,1.56655722]
[1645319629970,0.92127,2716.1,2715.7,12.71655722]
[1645319630169,0.92127,2716.1,2715.7,0.00273084]
[1645319630676,0.92127,2716.1,2715.6,1.01356723]
[1645319630869,0.92127,2716.1,2715.7,0.00273084]
[1645319631718,0.92127,2716.1,2715.6,12.16356723]
[1645319631923,0.92127,2716.1,2715.7,0.00273084]
[1645319632919,0.92127,2716.1,2715.6,1.01356723]
[1645319633116,0.92127,2716.1,2715.6,12.16356723]
[1645319633323,0.92127,2716.1,2715.7,0.00273084]
[1645319634218,0.92127,2716.1,2715.6,1.01356723]
[1645319634420,0.92127,2716.1,2715.7,0.00273084]
[1645319635318,0.92127,2716.1,2715.6,1.01356723]
[1645319635578,0.92121,2716.3,2715.7,0.00273084]
[1645319635974,0.92478999,2716.4,2715.7,0.00273084]
[1645319636172,0.92478999,2716.4,2715.7,11.15273084]
[1645319636571,0.92121,2716.4,2715.7,11.15]
[1645319636773,0.00358014,2716.4,2715.7,11.15273084]
[1645319637272,0.00358014,2716.4,2716.2,0.49718876]
[1645319637876,0.92114,2716.5,2716.2,0.49718876]
[1645319638275,0.00358034,2716.4,2716.2,11.64718876]
[1645319638875,0.98,2717.0,2716.2,11.64718876]
[1645319639326,0.00358034,2716.4,2716.2,11.64718876]
[1645319640135,1.901,2717.0,2716.2,11.64718876]
[1645319640329,0.00358034,2716.4,2716.2,11.64718876]
[1645319641133,0.00358034,2716.4,2715.7,11.15273084]
[1645319641331,0.00358034,2716.4,2715.6,4.297305]
[1645319641332,0.92107,2716.7,2715.6,14.916305]
[1645319641531,0.92107,2716.7,2715.5,5.56989597]
[1645319641532,3.5,2716.9,2715.5,2.34769597]
[1645319641731,3.5,2716.9,2715.3,2.41532499]
[1645319641732,0.00358034,2716.4,2715.7,0.00273084]
[1645319642130,0.92129,2716.3,2715.7,0.00273084]
[1645319642330,0.92129,2716.3,2715.8,1.0841271]
[1645319642731,0.92477009,2716.4,2715.8,1.0841271]
[1645319643877,0.92119,2716.4,2715.8,1.0841271]
[1645319644068,0.92477019,2716.4,2715.8,12.2341271]
[1645319644568,0.92477019,2716.4,2715.8,12.1841271]
[1645319644770,0.00358019,2716.4,2715.8,12.1841271]
[1645319644970,0.92111,2716.6,2715.8,12.1841271]
[1645319645172,0.00358019,2716.4,2715.8,12.1841271]
[1645319645570,0.00358019,2716.4,2715.8,1.0341271]
[1645319646170,0.9212,2716.5,2715.8,1.0341271]
[1645319646375,0.00358019,2716.4,2715.8,1.0341271]
[1645319646573,0.00358019,2716.4,2715.8,12.1841271]
[1645319646819,0.00358019,2716.4,2715.8,1.0341271]
[1645319647018,0.92122,2716.3,2715.8,1.0341271]
[1645319647320,2.94741,2716.7,2715.8,1.0341271]
[1645319647519,0.00358014,2716.4,2715.8,1.0341271]
[1645319647718,0.00358014,2716.4,2715.8,12.1841271]
[1645319647918,0.00358014,2716.4,2715.8,1.0341271]
[1645319648519,1.8424,2716.7,2715.8,1.0341271]
[1645319648719,0.00358019,2716.4,2715.8,1.0341271]
[1645319649720,0.92121,2716.5,2715.9,1.56493054]
[1645319649920,0.92480019,2716.4,2715.9,1.56493054]
[1645319650771,0.00358019,2716.4,2715.9,1.56493054]
[1645319650974,2.76351,2716.7,2715.9,1.56493054]
[1645319651173,0.00358024,2716.4,2715.9,1.56493054]